[Event "SUNWAY"]
[Date "2016.12.18"]
[Round "4.7"]
[White "Narciso Dublan, Marc"]
[Black "Vocaturo, Daniele"]
[Result "1/2-1/2"]
[WhiteElo "2508"]
[BlackElo "2606"]
[ECO "D97"]
[WhiteFed "ESP"]
[BlackFed "ITA"]
[FCGameId "1458689004"]
[TimeControl "5400+30"]

1. d4 Nf6 2. c4 g6 3. Nc3 d5 4. Nf3 Bg7 5. Qb3 dxc4 6. Qxc4 O-O 7. e4 a6 8. e5  Nfd7 9. Be2 b5 10. Qd5 Nb6 11. Qe4 Bf5 12. Qh4 f6 13. O-O Nc6 14. Rd1 b4 15. d5  g5 16. Qg3 Nxe5 17. Nxe5 fxe5 18. Nb1 h6 19. Qb3 a5 20. Be3 Kh8 21. Bxb6 cxb6  22. Nd2 e6 23. dxe6 Qe7 24. Bc4 Rad8 25. Nf1 b5 26. Rxd8 Rxd8 27. Bxb5 Bxe6 28.  Bc4 Bxc4 1/2-1/2

[Event "SUNWAY"]
[Date "2016.12.18"]
[Round "4.8"]
[White "Zubov, Alexander"]
[Black "Minko, Vladimir"]
[Result "1/2-1/2"]
[WhiteElo "2606"]
[BlackElo "2429"]
[ECO "A46"]
[WhiteFed "UKR"]
[BlackFed "RUS"]
[FCGameId "1080407658"]
[TimeControl "5400+30"]

1. d4 {[%clk 1:30:57]} Nf6 {[%clk 1:12:23]} 2. Nf3 {[%clk 1:29:25]} e6  {[%clk 1:12:33]} 3. e3 {[%clk 1:29:10]} c5 {[%clk 1:10:13]} 4. Bd3  {[%clk 1:28:09]} Nc6 {[%clk 1:08:56]} 5. O-O {[%clk 1:27:49]} Qb6  {[%clk 1:08:26]} 6. c3 {[%clk 1:22:04]} d5 {[%clk 1:06:59]} 7. Nbd2  {[%clk 1:22:22]} Bd6 {[%clk 1:04:26]} 8. Qe2 {[%clk 1:21:46]} Qc7  {[%clk 1:02:10]} 9. a3 {[%clk 1:03:07]} a6 {[%clk 0:54:28]} 10. c4  {[%clk 0:46:42]} dxc4 {[%clk 0:47:09]} 11. Nxc4 {[%clk 0:47:04]} Be7  {[%clk 0:41:26]} 12. dxc5 {[%clk 0:46:10]} Bxc5 {[%clk 0:41:21]} 13. b4  {[%clk 0:46:10]} Be7 {[%clk 0:39:43]} 14. Bb2 {[%clk 0:44:50]} b5  {[%clk 0:34:54]} 15. Nce5 {[%clk 0:39:29]} Bb7 {[%clk 0:33:32]} 16. Rac1  {[%clk 0:37:55]} Qb6 {[%clk 0:32:31]} 17. Nxc6 {[%clk 0:35:19]} Bxc6  {[%clk 0:32:56]} 18. Ne5 {[%clk 0:35:14]} Bd5 {[%clk 0:30:18]} 19. Bd4  {[%clk 0:27:24]} Qb7 {[%clk 0:29:50]} 20. f3 {[%clk 0:27:30]} Rd8  {[%clk 0:29:12]} 21. a4 {[%clk 0:20:44]} O-O {[%clk 0:28:37]} 22. axb5  {[%clk 0:21:10]} axb5 {[%clk 0:28:10]} 23. Bc5 {[%clk 0:21:26]} Bd6  {[%clk 0:26:21]} 24. Bxd6 {[%clk 0:18:40]} Rxd6 {[%clk 0:26:44]} 25. Rc5  {[%clk 0:19:00]} Rb6 {[%clk 0:25:31]} 26. Bxb5 {[%clk 0:16:56]} Qb8  {[%clk 0:24:54]} 27. Ng4 {[%clk 0:14:06]} Nxg4 {[%clk 0:24:05]} 28. fxg4  {[%clk 0:14:34]} Qb7 {[%clk 0:23:45]} 29. Rfc1 {[%clk 0:14:02]} Bxg2  {[%clk 0:22:05]} 30. Rc7 {[%clk 0:11:53]} Qf3 {[%clk 0:21:41]} 31. R1c5  {[%clk 0:11:55]} Bh1 {[%clk 0:18:15]} 32. Qxf3 {[%clk 0:07:10]} Bxf3  {[%clk 0:18:37]} 33. g5 {[%clk 0:07:18]} g6 {[%clk 0:16:42]} 34. Kf2  {[%clk 0:07:27]} Bd5 {[%clk 0:15:35]} 35. Rc8 1/2-1/2

[Event "SUNWAY"]
[Date "2016.12.18"]
[Round "4.9"]
[White "Vorobiov, Evgeny E."]
[Black "Lauber, Arnd"]
[Result "1/2-1/2"]
[WhiteElo "2583"]
[BlackElo "2421"]
[ECO "A08"]
[WhiteFed "RUS"]
[BlackFed "GER"]
[FCGameId "1899249462"]
[TimeControl "5400+30"]

1. e4 e6 2. d3 d5 3. Nd2 c5 4. g3 Nc6 5. Bg2 Nf6 6. Ngf3 Be7 7. O-O O-O 8. Re1  b5 9. e5 Nd7 10. Nf1 b4 11. h4 a5 12. Bf4 a4 13. a3 bxa3 14. bxa3 Ba6 15. Ne3  Rb8 16. c4 dxc4 17. Nxc4 Nb6 18. Nd6 Nd5 19. Qxa4 Nxf4 20. Qxf4 1/2-1/2

[Event "SUNWAY"]
[Date "2016.12.18"]
[Round "4.10"]
[White "Satyapragyan, Swayangsu"]
[Black "Peralta, Fernando"]
[Result "1/2-1/2"]
[WhiteElo "2462"]
[BlackElo "2574"]
[ECO "B12"]
[WhiteFed "IND"]
[BlackFed "ARG"]
[FCGameId "-120495896"]
[TimeControl "5400+30"]

1. e4 {[%clk 1:30:19]} c6 {[%clk 1:30:53]} 2. d4 {[%clk 1:30:39]} d5  {[%clk 1:31:16]} 3. e5 {[%clk 1:31:03]} Bf5 {[%clk 1:31:34]} 4. Nf3  {[%clk 1:31:10]} e6 {[%clk 1:31:39]} 5. Be2 {[%clk 1:31:35]} Nd7  {[%clk 1:31:40]} 6. O-O h6 {[%clk 1:31:17]} 7. Nbd2 {[%clk 1:31:28]} Ne7  {[%clk 1:31:36]} 8. Nb3 {[%clk 1:31:24]} Bh7 {[%clk 1:30:08]} 9. Bd2  {[%clk 1:30:22]} Ng6 {[%clk 1:28:28]} 10. c4 {[%clk 1:25:58]} dxc4  {[%clk 1:27:40]} 11. Na5 {[%clk 1:26:20]} Rb8 {[%clk 1:24:48]} 12. Nxc4  {[%clk 1:26:07]} Be7 {[%clk 1:18:00]} 13. Re1 {[%clk 1:16:00]} O-O  {[%clk 1:17:46]} 14. Rc1 {[%clk 1:11:46]} Rc8 {[%clk 0:51:21]} 15. Qb3  {[%clk 0:53:18]} Qc7 {[%clk 0:50:20]} 16. Bb4 {[%clk 0:51:37]} Bxb4  {[%clk 0:41:57]} 17. Qxb4 {[%clk 0:50:51]} Nb6 {[%clk 0:37:44]} 18. Nd6  {[%clk 0:49:03]} Rb8 {[%clk 0:37:53]} 19. Bd3 {[%clk 0:44:47]} Nc8  {[%clk 0:34:23]} 20. Nc4 {[%clk 0:43:00]} Rd8 {[%clk 0:33:37]} 21. Qa3  {[%clk 0:39:06]} Qe7 {[%clk 0:28:53]} 22. b4 {[%clk 0:38:45]} Nb6  {[%clk 0:26:08]} 23. Nd6 {[%clk 0:38:26]} Nc8 {[%clk 0:26:02]} 24. Nc4  {[%clk 0:38:42]} Nb6 {[%clk 0:22:39]} 25. Nd6 {[%clk 0:38:32]} Nc8  {[%clk 0:23:03]} 1/2-1/2

[Event "SUNWAY"]
[Date "2016.12.18"]
[Round "4.11"]
[White "Gual Pascual, Antonio"]
[Black "Lopez Martinez, Josep Manuel"]
[Result "0-1"]
[WhiteElo "2388"]
[BlackElo "2552"]
[ECO "A05"]
[WhiteFed "ESP"]
[BlackFed "ESP"]
[FCGameId "-5915239"]
[TimeControl "5400+30"]

1. Nf3 {[%clk 1:30:49]} Nf6 {[%clk 1:27:28]} 2. c4 {[%clk 1:30:39]} e6  {[%clk 1:26:12]} 3. g3 {[%clk 1:30:07]} d5 {[%clk 1:21:41]} 4. Bg2  {[%clk 1:29:37]} d4 {[%clk 1:15:31]} 5. O-O {[%clk 1:28:58]} c5 {[%clk 1:13:56]}  6. d3 {[%clk 1:28:34]} Nc6 {[%clk 1:13:48]} 7. e3 {[%clk 1:27:02]} Be7  {[%clk 1:11:32]} 8. exd4 {[%clk 1:23:09]} cxd4 {[%clk 1:11:47]} 9. Qe2  {[%clk 1:23:01]} Nd7 {[%clk 1:09:17]} 10. Na3 {[%clk 1:21:50]} O-O  {[%clk 1:08:36]} 11. Nc2 {[%clk 1:21:54]} e5 {[%clk 1:07:52]} 12. Bd2  {[%clk 1:19:48]} a5 {[%clk 0:58:33]} 13. a3 {[%clk 1:19:27]} a4 {[%clk 0:57:37]}  14. Nb4 {[%clk 1:17:14]} Bd6 {[%clk 0:53:13]} 15. Ng5 {[%clk 1:07:58]} Nc5  {[%clk 0:48:09]} 16. Nxc6 {[%clk 1:03:29]} bxc6 {[%clk 0:48:23]} 17. Bxc6  {[%clk 1:02:23]} Rb8 {[%clk 0:48:42]} 18. Rab1 {[%clk 0:59:47]} Qc7  {[%clk 0:45:31]} 19. Bd5 {[%clk 0:58:28]} Bf5 {[%clk 0:43:39]} 20. Ne4  {[%clk 0:56:15]} Bxe4 {[%clk 0:42:46]} 21. dxe4 {[%clk 0:55:40]} Rb3  {[%clk 0:41:55]} 22. Bb4 {[%clk 0:54:39]} Kh8 {[%clk 0:41:03]} 23. Rbd1  {[%clk 0:54:51]} f6 {[%clk 0:39:45]} 24. Rd2 {[%clk 0:52:22]} Rb8  {[%clk 0:39:27]} 25. Rfd1 {[%clk 0:47:31]} Qd7 {[%clk 0:37:57]} 26. Kg2  {[%clk 0:47:50]} g6 {[%clk 0:37:40]} 27. h4 {[%clk 0:47:06]} h5 {[%clk 0:38:01]}  28. Rc1 {[%clk 0:43:05]} Kg7 {[%clk 0:37:54]} 29. Bxc5 {[%clk 0:43:08]} Bxc5  {[%clk 0:37:40]} 30. Rcc2 {[%clk 0:43:28]} R8b6 {[%clk 0:36:36]} 31. Rd3  {[%clk 0:42:44]} Rxd3 {[%clk 0:35:58]} 32. Qxd3 {[%clk 0:43:07]} Rb3  {[%clk 0:36:24]} 33. Qd1 {[%clk 0:43:16]} Qc8 {[%clk 0:36:02]} 34. Rd2  {[%clk 0:43:27]} Qb8 {[%clk 0:34:58]} 35. Qc2 {[%clk 0:37:07]} Qb6  {[%clk 0:33:50]} 36. Qd1 {[%clk 0:36:57]} Qb8 {[%clk 0:22:17]} 37. Bc6  {[%clk 0:30:55]} Rxb2 {[%clk 0:22:25]} 38. Rd3 {[%clk 0:30:08]} Ra2  {[%clk 0:14:01]} 39. Qf3 {[%clk 0:06:39]} Qb2 {[%clk 0:07:41]} 40. Bxa4  {[%clk 0:35:58]} Qe2 {[%clk 0:35:50]} 41. Qxe2 {[%clk 0:34:02]} Rxe2  {[%clk 0:36:12]} 42. Bd1 {[%clk 0:32:39]} Ra2 {[%clk 0:36:16]} 43. Rb3  {[%clk 0:29:25]} d3 {[%clk 0:28:52]} 44. Rxd3 {[%clk 0:28:39]} Rxf2+  {[%clk 0:29:13]} 45. Kh3 {[%clk 0:25:18]} Bd4 {[%clk 0:29:26]} 46. a4  {[%clk 0:24:42]} Ra2 {[%clk 0:29:32]} 47. g4 {[%clk 0:22:39]} hxg4+  {[%clk 0:27:43]} 48. Kxg4 {[%clk 0:22:42]} Rg2+ {[%clk 0:26:36]} 49. Kh3  {[%clk 0:22:37]} Rf2 {[%clk 0:26:15]} 50. Rf3 {[%clk 0:20:23]} Rd2  {[%clk 0:26:36]} 51. Rf1 {[%clk 0:20:30]} f5 {[%clk 0:26:29]} 52. h5 f4  {[%clk 0:25:09]} 53. hxg6 {[%clk 0:19:31]} Kxg6 {[%clk 0:25:12]} 54. Kg4  {[%clk 0:16:14]} Rg2+ {[%clk 0:25:16]} 55. Kf3 {[%clk 0:16:39]} Rh2  {[%clk 0:23:21]} 56. Kg4 {[%clk 0:16:06]} Kf6 {[%clk 0:23:18]} 57. a5  {[%clk 0:11:47]} Rg2+ {[%clk 0:22:42]} 58. Kf3 {[%clk 0:12:07]} Rg3+  {[%clk 0:22:39]} 59. Ke2 {[%clk 0:12:30]} Re3+ {[%clk 0:22:04]} 60. Kd2  {[%clk 0:12:24]} Rxe4 {[%clk 0:17:43]} 61. Rf3 {[%clk 0:10:48]} Be3+  {[%clk 0:17:49]} 62. Kc3 {[%clk 0:11:10]} Rd4 {[%clk 0:18:07]} 63. Bc2  {[%clk 0:11:00]} Bd2+ {[%clk 0:17:10]} 64. Kb3 {[%clk 0:11:14]} e4  {[%clk 0:13:45]} 65. Rf1 {[%clk 0:11:25]} e3 {[%clk 0:13:57]} 66. Bd1  {[%clk 0:10:05]} Bxa5 {[%clk 0:14:18]} 67. Bf3 {[%clk 0:09:46]} Rd2  {[%clk 0:13:52]} 68. c5 {[%clk 0:08:41]} Ke5 {[%clk 0:13:47]} 69. Kc4  {[%clk 0:08:58]} e2 {[%clk 0:13:05]} 70. Bxe2 {[%clk 0:08:37]} Rxe2  {[%clk 0:13:24]} 71. Kb3 Rg2 0-1

[Event "SUNWAY"]
[Date "2016.12.18"]
[Round "4.12"]
[White "Garriga Cazorla, Pere"]
[Black "Burmakin, Vladimir"]
[Result "1-0"]
[WhiteElo "2386"]
[BlackElo "2535"]
[ECO "A06"]
[WhiteFed "ESP"]
[BlackFed "RUS"]
[FCGameId "-438391142"]
[TimeControl "5400+30"]

1. Nf3 {[%clk 1:30:55]} d5 {[%clk 1:30:46]} 2. g3 {[%clk 1:30:49]} c6  {[%clk 1:31:02]} 3. Bg2 {[%clk 1:31:04]} Bf5 {[%clk 1:31:23]} 4. c4  {[%clk 1:31:02]} e6 {[%clk 1:31:40]} 5. O-O {[%clk 1:31:15]} Nd7  {[%clk 1:31:15]} 6. cxd5 {[%clk 1:30:22]} cxd5 {[%clk 1:31:40]} 7. Nc3  {[%clk 1:30:17]} Ngf6 {[%clk 1:32:01]} 8. d3 {[%clk 1:30:41]} Bc5  {[%clk 1:31:40]} 9. a3 {[%clk 1:26:41]} O-O {[%clk 1:32:01]} 10. b4  {[%clk 1:26:25]} Be7 {[%clk 1:30:59]} 11. Qb3 {[%clk 1:17:08]} a5  {[%clk 1:24:16]} 12. Rb1 {[%clk 1:06:02]} axb4 {[%clk 1:22:48]} 13. axb4  {[%clk 1:06:21]} Bg4 {[%clk 1:22:06]} 14. Bf4 {[%clk 0:43:19]} Qb6  {[%clk 1:16:24]} 15. Be3 {[%clk 0:22:40]} Qa6 {[%clk 1:16:08]} 16. Nd2  {[%clk 0:23:01]} Qa3 {[%clk 1:09:26]} 17. h3 {[%clk 0:21:46]} Bh5  {[%clk 1:05:41]} 18. g4 {[%clk 0:21:50]} Bg6 {[%clk 1:06:10]} 19. f4  {[%clk 0:21:42]} Rfc8 {[%clk 1:02:32]} 20. Bd4 {[%clk 0:19:05]} h6  {[%clk 0:43:13]} 21. e4 {[%clk 0:14:00]} dxe4 {[%clk 0:11:00]} 22. dxe4  {[%clk 0:14:03]} Qxb3 {[%clk 0:11:05]} 23. Rxb3 {[%clk 0:14:24]} e5  {[%clk 0:11:22]} 24. fxe5 {[%clk 0:12:48]} Nh7 {[%clk 0:11:51]} 25. Nd5  {[%clk 0:10:23]} Bd8 {[%clk 0:12:19]} 26. Rc3 {[%clk 0:08:05]} Rxc3  {[%clk 0:11:01]} 27. Bxc3 {[%clk 0:08:28]} Nhf8 {[%clk 0:10:55]} 28. Nc4  {[%clk 0:08:13]} Ne6 {[%clk 0:09:47]} 29. Nd6 {[%clk 0:07:52]} Rb8  {[%clk 0:08:29]} 30. Ra1 {[%clk 0:06:31]} Bh4 {[%clk 0:08:50]} 31. Nf5  {[%clk 0:06:30]} Bd8 {[%clk 0:05:25]} 32. h4 {[%clk 0:04:45]} Bh7  {[%clk 0:03:28]} 33. h5 {[%clk 0:04:37]} Bg5 {[%clk 0:03:37]} 34. Rf1  {[%clk 0:03:27]} Nd8 {[%clk 0:01:33]} 35. Nd6 {[%clk 0:00:54]} Nf8  {[%clk 0:01:19]} 36. b5 {[%clk 0:00:38]} Nfe6 {[%clk 0:01:37]} 37. Ra1  {[%clk 0:00:55]} Nf4 {[%clk 0:01:23]} 38. Bf1 {[%clk 0:01:03]} Nde6  {[%clk 0:01:00]} 39. Bc4 {[%clk 0:00:55]} Bd8 {[%clk 0:00:33]} 40. Nxf4  {[%clk 0:30:45]} Nxf4 {[%clk 0:30:54]} 41. Nxf7 {[%clk 0:19:55]} Ne2+  {[%clk 0:30:51]} 42. Kh2 {[%clk 0:16:28]} Nxc3 {[%clk 0:31:10]} 43. Nxd8+  {[%clk 0:16:02]} Kf8 {[%clk 0:31:36]} 44. Rf1+ {[%clk 0:13:48]} Ke8  {[%clk 0:32:05]} 45. Ne6 {[%clk 0:13:51]} Ke7 {[%clk 0:32:17]} 46. Nxg7  {[%clk 0:13:39]} Rf8 {[%clk 0:32:35]} 47. Nf5+ {[%clk 0:12:54]} Kd8  {[%clk 0:32:52]} 48. Ra1 {[%clk 0:11:33]} Kc7 {[%clk 0:32:58]} 49. Rc1 1-0

[Event "SUNWAY"]
[Date "2016.12.18"]
[Round "4.13"]
[White "Shyam, Sundar M."]
[Black "Roeder, Matthias"]
[Result "1-0"]
[WhiteElo "2532"]
[BlackElo "2386"]
[ECO "B90"]
[WhiteFed "IND"]
[BlackFed "GER"]
[FCGameId "457495134"]
[TimeControl "5400+30"]

1. e4 {[%clk 1:30:55]} c5 {[%clk 1:30:50]} 2. Nf3 {[%clk 1:31:20]} d6  {[%clk 1:31:09]} 3. d4 {[%clk 1:31:47]} cxd4 {[%clk 1:31:21]} 4. Nxd4  {[%clk 1:32:14]} Nf6 {[%clk 1:31:41]} 5. Nc3 {[%clk 1:32:41]} a6  {[%clk 1:31:58]} 6. Be3 {[%clk 1:33:05]} e5 {[%clk 1:31:47]} 7. Nb3  {[%clk 1:33:22]} Be7 {[%clk 1:31:59]} 8. Qd2 {[%clk 1:33:21]} Be6  {[%clk 1:27:36]} 9. f4 {[%clk 1:33:17]} b5 {[%clk 1:27:56]} 10. f5  {[%clk 1:29:12]} Bd7 {[%clk 1:27:01]} 11. O-O-O {[%clk 1:27:26]} b4  {[%clk 1:23:18]} 12. Nd5 {[%clk 1:27:36]} Nxd5 {[%clk 1:23:42]} 13. Qxd5  {[%clk 1:27:34]} Bc6 {[%clk 1:24:06]} 14. Qc4 {[%clk 1:20:43]} a5 15. Kb1  {[%clk 1:14:59]} O-O {[%clk 1:18:25]} 16. g4 {[%clk 1:11:58]} a4  {[%clk 1:14:46]} 17. Nc1 {[%clk 1:11:12]} Qa5 {[%clk 1:12:16]} 18. g5  {[%clk 1:07:01]} Rd8 {[%clk 1:06:04]} 19. Bg2 {[%clk 0:45:27]} Bb5  {[%clk 1:06:20]} 20. Qd5 Na6 {[%clk 0:50:05]} 21. f6 {[%clk 0:41:48]} gxf6 22.  gxf6 {[%clk 0:38:08]} Bxf6 {[%clk 0:50:28]} 23. Rhg1 {[%clk 0:37:17]} Nc7  {[%clk 0:46:22]} 24. Bh3+ Kf8 {[%clk 0:46:45]} 25. Qd2 {[%clk 0:34:47]} b3  {[%clk 0:45:32]} 26. Qf2 {[%clk 0:27:38]} bxc2+ {[%clk 0:45:48]} 27. Kxc2  {[%clk 0:28:03]} Ne8 {[%clk 0:43:59]} 28. Bh6+ {[%clk 0:28:01]} Ke7  {[%clk 0:41:56]} 29. Rg8 {[%clk 0:28:25]} Rdc8+ {[%clk 0:42:12]} 30. Kb1  {[%clk 0:28:28]} Rxc1+ {[%clk 0:36:47]} 31. Rxc1 {[%clk 0:28:06]} Qb4  {[%clk 0:31:41]} 32. Bf8+ {[%clk 0:28:26]} Kd8 {[%clk 0:31:20]} 33. Qb6+  {[%clk 0:28:50]} 1-0

[Event "SUNWAY"]
[Date "2016.12.18"]
[Round "4.14"]
[White "Lemos, Damian"]
[Black "Gu, Xiaobing"]
[Result "0-1"]
[WhiteElo "2516"]
[BlackElo "2324"]
[ECO "A05"]
[WhiteFed "ARG"]
[BlackFed "CHN"]
[FCGameId "-1191629469"]
[TimeControl "5400+30"]

1. Nf3 {[%clk 1:30:25]} Nf6 {[%clk 1:30:52]} 2. g3 {[%clk 1:29:58]} g6  {[%clk 1:31:12]} 3. d4 {[%clk 1:30:23]} Bg7 {[%clk 1:31:38]} 4. Bg2  {[%clk 1:30:51]} d6 {[%clk 1:31:21]} 5. O-O {[%clk 1:31:12]} O-O  {[%clk 1:31:46]} 6. c4 {[%clk 1:31:37]} Nc6 {[%clk 1:31:55]} 7. Nc3  {[%clk 1:31:57]} Rb8 {[%clk 1:32:05]} 8. d5 {[%clk 1:32:09]} Na5  {[%clk 1:32:02]} 9. b3 c6 {[%clk 1:23:13]} 10. dxc6 {[%clk 1:28:14]} bxc6  {[%clk 1:20:12]} 11. Bd2 {[%clk 1:28:20]} c5 {[%clk 1:13:27]} 12. Qc1 Re8  {[%clk 1:12:13]} 13. Bh6 {[%clk 1:28:01]} Bh8 {[%clk 1:12:20]} 14. h3  {[%clk 1:28:14]} Bb7 {[%clk 1:12:15]} 15. Qe3 {[%clk 1:14:54]} Nc6  {[%clk 1:11:12]} 16. Qc1 {[%clk 0:59:34]} Nd4 {[%clk 1:07:14]} 17. Be3  {[%clk 0:46:10]} Nd7 {[%clk 0:47:35]} 18. Rd1 {[%clk 0:37:34]} Bxf3  {[%clk 0:47:01]} 19. exf3 {[%clk 0:29:21]} Qa5 20. Bxd4 {[%clk 0:26:39]} Bxd4  {[%clk 0:45:53]} 21. Rd3 {[%clk 0:19:22]} Ne5 {[%clk 0:46:10]} 22. Rxd4  {[%clk 0:19:28]} cxd4 {[%clk 0:46:34]} 23. Nd5 Nd7 {[%clk 0:41:30]} 24. Qg5  {[%clk 0:18:32]} Qd8 {[%clk 0:41:55]} 25. Qd2 {[%clk 0:17:06]} e6  {[%clk 0:42:08]} 26. Nf4 e5 27. Nd5 {[%clk 0:16:14]} Nf6 {[%clk 0:40:01]} 28. f4  {[%clk 0:15:14]} Nxd5 {[%clk 0:40:20]} 29. Bxd5 {[%clk 0:15:39]} Qf6  {[%clk 0:38:01]} 30. fxe5 {[%clk 0:14:56]} dxe5 {[%clk 0:36:52]} 31. Re1  {[%clk 0:14:46]} Kg7 {[%clk 0:35:22]} 32. Re4 {[%clk 0:13:47]} h6  {[%clk 0:34:57]} 33. f4 {[%clk 0:12:37]} g5 {[%clk 0:31:52]} 34. fxg5  {[%clk 0:11:58]} hxg5 35. Rg4 {[%clk 0:10:41]} Rg8 {[%clk 0:25:14]} 36. c5  {[%clk 0:07:45]} Rbd8 {[%clk 0:24:37]} 37. Be4 {[%clk 0:07:20]} Kf8  {[%clk 0:20:55]} 38. c6 Qe7 {[%clk 0:20:08]} 39. Qd3 {[%clk 0:04:10]} Qc5  {[%clk 0:20:04]} 40. Kg2 {[%clk 0:34:16]} Qa5 {[%clk 0:44:06]} 41. Qc2  {[%clk 0:28:41]} Ke7 {[%clk 0:38:47]} 42. Qf2 {[%clk 0:20:21]} Qc5  {[%clk 0:33:37]} 43. h4 gxh4 44. Rxh4 {[%clk 0:10:54]} Rd6 {[%clk 0:30:12]} 45.  Qf5 {[%clk 0:09:42]} Rxc6 {[%clk 0:28:58]} 46. Bxc6 {[%clk 0:08:50]} Qxc6+  {[%clk 0:29:25]} 47. Kh2 {[%clk 0:08:15]} Qe6 {[%clk 0:27:45]} 48. Qe4  {[%clk 0:07:52]} Rd8 {[%clk 0:26:23]} 49. Rh5 {[%clk 0:03:32]} Rd5  {[%clk 0:26:47]} 50. Qc2 Qd6 {[%clk 0:23:22]} 51. Qc8 {[%clk 0:03:36]} Rc5  {[%clk 0:23:23]} 52. Qb7+ {[%clk 0:03:48]} Qd7 {[%clk 0:20:41]} 53. Qb4  {[%clk 0:04:04]} Qc7 {[%clk 0:20:50]} 54. Kh3 {[%clk 0:03:13]} Ke6  {[%clk 0:20:52]} 55. Qd2 {[%clk 0:02:14]} Rc1 {[%clk 0:19:42]} 56. Kg4  {[%clk 0:01:21]} Qc2 {[%clk 0:18:45]} 57. Qh6+ {[%clk 0:00:55]} f6  {[%clk 0:18:19]} 58. Rh2 {[%clk 0:00:57]} Qf5+ {[%clk 0:17:05]} 59. Kh4  {[%clk 0:01:23]} Rc7 {[%clk 0:16:00]} 60. g4 {[%clk 0:01:27]} Qe4  {[%clk 0:16:25]} 61. Kg3 {[%clk 0:00:47]} Qd3+ {[%clk 0:16:50]} 0-1

[Event "SUNWAY"]
[Date "2016.12.18"]
[Round "4.15"]
[White "Kamsky, Gata"]
[Black "Olivares Canelles, Francisco"]
[Result "1-0"]
[WhiteElo "2661"]
[BlackElo "2336"]
[ECO "C91"]
[WhiteFed "USA"]
[BlackFed "CUB"]
[FCGameId "371689610"]
[TimeControl "5400+30"]

1. e4 {[%clk 1:30:39]} e5 {[%clk 1:23:06]} 2. Nf3 {[%clk 1:31:02]} Nc6  {[%clk 1:23:30]} 3. Bb5 {[%clk 1:31:27]} a6 {[%clk 1:23:54]} 4. Ba4  {[%clk 1:31:51]} Nf6 {[%clk 1:24:11]} 5. O-O {[%clk 1:32:15]} Be7  {[%clk 1:24:36]} 6. Re1 {[%clk 1:32:17]} b5 {[%clk 1:24:56]} 7. Bb3  {[%clk 1:32:42]} O-O {[%clk 1:25:00]} 8. d4 {[%clk 1:30:27]} d6 {[%clk 1:25:10]}  9. c3 {[%clk 1:30:51]} Bg4 {[%clk 1:25:27]} 10. d5 {[%clk 1:31:02]} Na5  {[%clk 1:25:28]} 11. Bc2 {[%clk 1:31:26]} Qc8 {[%clk 1:25:36]} 12. h3  {[%clk 1:31:43]} Bd7 {[%clk 1:25:53]} 13. Nbd2 {[%clk 1:31:22]} c6  {[%clk 1:26:01]} 14. dxc6 {[%clk 1:31:46]} Qxc6 {[%clk 1:25:55]} 15. Nf1  {[%clk 1:32:06]} Rac8 {[%clk 1:15:29]} 16. Bg5 {[%clk 1:21:43]} Nc4  {[%clk 1:08:13]} 17. b3 {[%clk 1:17:05]} Nb6 {[%clk 1:03:43]} 18. Re3  {[%clk 1:15:33]} Qb7 {[%clk 0:56:15]} 19. Ng3 {[%clk 1:15:17]} Be6  {[%clk 0:45:17]} 20. Rd3 {[%clk 0:38:30]} h6 {[%clk 0:35:15]} 21. Bxf6  {[%clk 0:35:51]} Bxf6 {[%clk 0:35:37]} 22. Nh2 {[%clk 0:31:15]} Rfd8  {[%clk 0:32:13]} 23. Ng4 {[%clk 0:29:49]} Bg5 {[%clk 0:29:33]} 24. Qe2  {[%clk 0:27:16]} Nd7 {[%clk 0:27:11]} 25. Rad1 {[%clk 0:27:01]} Nf6  {[%clk 0:20:22]} 26. Nxe5 {[%clk 0:24:37]} Re8 {[%clk 0:18:34]} 27. Nf3  {[%clk 0:23:26]} Bf4 {[%clk 0:18:48]} 28. Nd4 {[%clk 0:23:51]} Bd7  {[%clk 0:16:13]} 29. Rf3 {[%clk 0:23:40]} Nd5 {[%clk 0:14:40]} 30. Qe1  {[%clk 0:17:09]} Bxg3 {[%clk 0:07:47]} 31. Rxg3 {[%clk 0:17:31]} Qc7  {[%clk 0:06:30]} 32. Qd2 {[%clk 0:13:17]} Nxc3 {[%clk 0:06:50]} 33. Qxh6  {[%clk 0:13:28]} g6 {[%clk 0:03:54]} 34. Re1 {[%clk 0:07:50]} d5  {[%clk 0:03:30]} 35. e5 {[%clk 0:06:13]} Ne4 {[%clk 0:03:55]} 36. Bxe4  {[%clk 0:06:17]} Rxe5 {[%clk 0:03:32]} 37. Rxg6+ {[%clk 0:06:27]} fxg6  {[%clk 0:03:56]} 38. Qxg6+ {[%clk 0:06:53]} Kf8 {[%clk 0:04:20]} 39. Qf6+  {[%clk 0:07:21]} Kg8 {[%clk 0:04:39]} 40. Bh7+ {[%clk 0:37:45]} Kxh7  {[%clk 0:35:04]} 41. Rxe5 {[%clk 0:38:09]} 1-0

[Event "SUNWAY"]
[Date "2016.12.18"]
[Round "4.16"]
[White "Sunilduth Lyna, Narayanan"]
[Black "Santarius, Erik F"]
[Result "1-0"]
[WhiteElo "2541"]
[BlackElo "2312"]
[ECO "D45"]
[WhiteFed "IND"]
[BlackFed "USA"]
[FCGameId "1299208287"]
[TimeControl "5400+30"]

1. d4 d5 2. c4 c6 3. Nc3 Nf6 4. e3 e6 5. Nf3 Nbd7 6. Qc2 Bd6 7. Bd3 O-O 8. O-O  dxc4 9. Bxc4 b5 10. Be2 a6 11. e4 e5 12. h3 Qc7 13. Be3 Re8 14. Rad1 Bb7 15.  dxe5 Nxe5 16. Nh4 b4 17. Nf5 Bf8 18. Na4 c5 19. f3 Rac8 20. b3 h5 21. Bf4 g6 22.  Ne3 Bd6 23. Kh1 c4 24. Nxc4 Nxc4 25. Bxd6 Nxd6 26. Qxc7 Rxc7 27. Rxd6 Kg7 28.  Bc4 h4 29. Rfd1 Re5 30. Nb6 Ra5 31. R1d2 Bc6 32. Kg1 Nh5 33. Nd5 Bxd5 34. exd5  Ng3 35. Rxa6 Rac5 36. Kf2 Re7 37. Rd1 Nf5 38. d6 Rd7 39. Rb6 Ra5 40. Rd2 Ra8 41.  Bb5 Rdd8 42. d7 Ra7 43. Ba4 Rc7 44. Rxb4 Rc1 45. Rc4 Ng3 46. Rxc1 1-0

[Event "SUNWAY"]
[Date "2016.12.18"]
[Round "4.17"]
[White "Silva, Luis Neves Da"]
[Black "Del Rio De Angelis, Salvador G."]
[Result "1/2-1/2"]
[WhiteElo "2307"]
[BlackElo "2530"]
[ECO "C17"]
[WhiteFed "POR"]
[BlackFed "ESP"]
[FCGameId "1564575979"]
[TimeControl "5400+30"]

1. e4 e6 2. d4 d5 3. Nc3 Bb4 4. e5 c5 5. a3 Ba5 6. b4 cxd4 7. Qg4 Ne7 8. bxa5  dxc3 9. Qxg7 Rg8 10. Qxh7 Nbc6 11. Nf3 Qc7 12. Bf4 Bd7 13. a6 O-O-O 14. axb7+  Kb8 15. Qd3 Rg4 16. g3 Ng6 17. Qxc3 d4 18. Qc5 Be8 19. c4 Nxf4 20. h3 Nxh3 21.  Rxh3 Re4+ 22. Kd2 Nxe5 23. Qxc7+ Kxc7 24. Nxe5 Rxe5 25. Rb1 Bc6 26. Rh7 Rf5 27.  b8=Q+ Rxb8 28. Rxb8 Kxb8 29. f4 e5 30. Bh3 Rf6 31. fxe5 Rf3 32. Rh8+ Kb7 33. Rf8  Rxg3 34. Rxf7+ Kb6 35. Bd7 Bxd7 36. Rxd7 Re3 37. Rd5 Kc6 38. a4 Kc7 39. Ra5 Kb6  40. Rb5+ Kc6 41. Ra5 Kb6 42. Rd5 Kc7 43. Rxd4 Rxe5 44. Kc3 Kb6 45. Rd8 Re1 46.  a5+ Kxa5 47. Rb8 Rh1 48. Kd4 1/2-1/2